Cogmind - Beta 15 @@@ ROGUE MODE // 2025.08.13 @ 20:14:13 Player: Waste Result: Destroyed by 3S-1H2(R) with Subdweller Machine Gun Performance ------------- Evolutions (0) 0 Regions Visited (2) 400 Robots Destroyed (8) 40 Value Destroyed (315) 315 Prototype IDs (11) 220 Alien Tech Used (0) 0 Bonus (-21) -21 TOTAL SCORE: 954 Bonus ------- Friendly Fire -21 Cogmind --------- Core Integrity 0/250 Matter 300/300 Energy 232/250 System Corruption 0% Temperature Cool (0) Movement Treading (160) Location -10/Subcaves Parts ------- > --- POWER (1) -------- Ion Engine > --- PROPULSION (2) --- Light Treads Light Treads > --- UTILITY (2) ------ Large Storage Unit > --- WEAPON (2) ------- Medium Laser Subdweller Laser > --- INVENTORY (15) --- Ion Engine Subdweller Power Source Subdweller Power Source Subdweller Power Source Aluminum Leg Arachnoskeleton Wheel Subdweller Monowheel Subdweller Monowheel Medium Matter Pod (100) Subdweller Laser Grenade Launcher Multitool Peak State ------------ > --- POWER ------------ Ion Engine > --- PROPULSION ------- Light Treads Light Treads > --- UTILITY ---------- Large Storage Unit > --- WEAPON ----------- Subdweller Laser Light Assault Rifle > --- INVENTORY -------- Ion Engine Subdweller Power Source Subdweller Power Source Subdweller Power Source Aluminum Leg Arachnoskeleton Wheel Subdweller Monowheel Subdweller Monowheel Medium Matter Pod Subdweller Laser Grenade Launcher Multitool [Rating: 11] Favorites ----------- Power Ion Engine Engine Ion Engine Propulsion Aluminum Leg Treads Light Treads Leg Aluminum Leg Utility Large Storage Unit Storage Large Storage Unit Protection Light Armor Plating Weapon Medium Laser Energy Gun Medium Laser Ballistic Gun Light Assault Rifle Launcher Grenade Launcher Build | -11 -10 -10 ------- Run | Yrd Mat Sub Slots Evolved . | . . . Power . | . . . Propulsion . | . . . Utility . | . . . Weapon . | . . . Parts Attached 12 | 1 3 8 Power 1 | . . 1 Engine 1 | . . 1 Core . | . . . Reactor . | . . . Propulsion 3 | . 1 2 Treads 2 | . . 2 Leg 1 | . 1 . Wheel . | . . . Hover . | . . . Flight . | . . . Utility 2 | . 2 . Device . | . . . Storage 1 | . 1 . Processor . | . . . Hackware . | . . . Protection 1 | . 1 . Artifact . | . . . Weapon 6 | 1 . 5 Energy Gun 4 | 1 . 3 Energy Cannon . | . . . Ballistic Gun 1 | . . 1 Ballistic Cannon . | . . . Launcher 1 | . . 1 Special Weapon . | . . . Impact Weapon . | . . . Slashing Weapon . | . . . Piercing Weapon . | . . . Special Melee Weapon . | . . . Unidentified Prototypes . | . . . Parts Lost 4 | . . 4 Power 1 | . . 1 Propulsion 1 | . . 1 Utility 1 | . . 1 Weapon 1 | . . 1 Highest Loss Streak 4 | . . 4 To Critical Strikes . | . . . Average Backups 11 | 6 8 12 Power 3 | 1 1 4 Propulsion 5 | 4 4 5 Utility . | . . 1 Weapon 1 | 1 1 1 Tool/Special . | . . . Unused Backups 12 | . 2 10 Power 4 | . . 4 Propulsion 4 | . . 4 Utility 3 | . 2 1 Weapon . | . . . Tool/Special 1 | . . 1 Average Slot Usage (%) 91 | . 98 90 Engine 13 | . 14 13 Treads 10 | . . 11 Leg 17 | . 28 16 Storage 14 | . 14 14 Protection 5 | . 12 4 Energy Gun 21 | . 28 20 Ballistic Gun 5 | . . 6 Peak Build Rating 11 | 6 8 11 Average Rating 9 | 6 7 9 On Entrance 6 | 6 6 8 Naked Turns . | . . . Heaviest Build 34 | 14 34 33 Greatest Support 40 | 20 20 40 Greatest Overweight (x) 3 | . 3 1 Average Overweight (x) . | . . . Largest Inventory Capacity 15 | 8 15 15 Average Capacity 14 | 8 14 15 Most Carried 15 | 6 10 15 Average Carried 13 | 6 8 14 Final Capacity 15 | 8 15 15 Final Carried 15 | 6 10 15 Class Distribution -------------------- 100% | Mutant Dominant Class ---------------- Mutant | -10/Materials Mutant | -10/Subcaves Resources | -11 -10 -10 ----------- Run | Yrd Mat Sub Matter Collected 463 | 200 89 174 Remotely . | . . . Salvage Created 364 | . 89 275 Parts 22 | . 3 19 Haulers Intercepted . | . . . Recyclers Shooed . | . . . Parts Field Recycled . | . . . Retrieved Matter . | . . . Parts Self-Destructed 8 | . . 8 Prevented . | . . . Kills | -11 -10 -10 ------- Run | Yrd Mat Sub Combat Hostiles Destroyed 8 | . 2 6 Guns 8 | . 2 6 Classes Destroyed 2 | . 1 1 Grunt 3 | . 2 1 Subdweller 5 | . . 5 Best Kill Streak 2 | . 1 2 Combat Bots Only 2 | . 1 2 Max Kills in Single Turn 1 | . 1 1 Gunslinging . | . . . Exploded . | . . . Melee . | . . . Uniques/NPCs Destroyed . | . . . Combat | -11 -10 -10 -------- Run | Yrd Mat Sub Hostile Shots Fired 62 | . 10 52 Missed 14 | . 1 13 Hits 48 | . 9 39 Projectile 48 | . 9 39 Damage Taken 913 | . 126 787 Core 259 | . 48 211 Absorbed by Shields . | . . . Core Remaining (%) 100 | 100 . . Volleys Fired 59 | . 9 50 Largest 2 | . 2 2 Hottest 110 | . 100 110 Shots Fired 115 | . 18 97 Gun 113 | . 18 95 Cannon . | . . . Launcher 2 | . . 2 Special . | . . . Kinetic 33 | . . 33 Thermal 80 | . 18 62 Explosive 2 | . . 2 Electromagnetic . | . . . Robot Hit Streak 16 | . 8 16 Robot Miss Streak 2 | . 2 2 Penetration Max . | . . . Secondary Targets . | . . . Shots Hit Robots 57 | . 13 44 Core Hits 22 | . 5 17 Critical Kills . | . . . Critical Parts Destroyed . | . . . Critical Strikes 3 | . . 3 Burn 3 | . . 3 Melee Attacks . | . . . Impact . | . . . Slashing . | . . . Piercing . | . . . Sneak Attacks . | . . . Combat Hostiles . | . . . Follow-up Attacks . | . . . Damage Inflicted 788 | . 164 624 Guns 767 | . 164 603 Cannons . | . . . Explosions 21 | . . 21 Melee . | . . . Ramming . | . . . Kinetic 76 | . . 76 Thermal 691 | . 164 527 Explosive 21 | . . 21 Electromagnetic . | . . . Impact . | . . . Slashing . | . . . Piercing . | . . . Highest Corruption . | . . . Average Corruption . | . . . Corruption Purged . | . . . Corruption Blocked . | . . . Overload Shots . | . . . Overflow Damage . | . . . Projectiles . | . . . Explosions . | . . . Melee . | . . . Knockbacks . | . . . Impact . | . . . Kinetic . | . . . Secondary . | . . . Self-Inflicted Damage 52 | . . 52 Shots 2 | . . 2 Rammed . | . . . Targets Rammed . | . . . Kicked . | . . . Crushed . | . . . Highest Temperature 371 | . 371 15 Average Temperature 132 | . 163 7 Received Heat Transfer 243 | . 72 171 Effects 2 | . 2 . Shutdowns 1 | . 1 . Short Circuit 1 | . 1 . Siege Activations . | . . . Martial Activations . | . . . Shielding Activations . | . . . Robots Disrupted . | . . . Combat Hostiles . | . . . Robots Corrupted . | . . . Combat Hostiles . | . . . Parts Fried . | . . . Impact Corruptions . | . . . Robots Melted . | . . . Combat Hostiles . | . . . Parts Melted 3 | . 1 2 Heat Transferred 1878 | . 481 1397 Parts Sabotaged . | . . . Parts Stolen . | . . . Parts Stripped . | . . . Power Chain Reactions . | . . . Alert | -11 -10 -10 ------- Run | Yrd Mat Sub Maximum Alert Level . | . . . Low Security (%) 100 | 100 100 . Level 1 . | . . . Level 2 . | . . . Level 3 . | . . . Level 4 . | . . . Level 5 . | . . . High Security . | . . . Max Security . | . . . Peak Influence 40 | . 40 . Initial . | . . . Average 6 | . 6 . Influence Increases 130 | . 50 80 Destroy 0b10 Robot/C 60 | . 40 20 Destroy Leader 10 | . 10 . Lose Combat Pursuer 60 | . . 60 Influence Decreases 130 | . 40 90 Entered New Map 6 | . . 6 Time Decay 124 | . 40 84 Squads Dispatched . | . . . Investigation . | . . . Extermination . | . . . Reinforcement . | . . . Assault . | . . . Garrison . | . . . Intercept . | . . . Searches Triggered . | . . . Construction Impeded . | . . . Haulers Reinforced . | . . . Active Scanning Responses . | . . . Cargo Convoy Interrupts . | . . . Stealth | -11 -10 -10 --------- Run | Yrd Mat Sub Distress Signals . | . . . Communications Jammed . | . . . Distress Signals . | . . . Times Spotted 15 | . 3 12 Peak Tracking Total 2 | . 2 2 Tactical Retreats 4 | . . 4 Traps | -11 -10 -10 ------- Run | Yrd Mat Sub Traps Triggered 1 | . . 1 Indirectly . | . . . Trap Hack Attempts . | . . . Triggered . | . . . Disarmed . | . . . Reprogrammed . | . . . Reused . | . . . Traps Extracted . | . . . Installed . | . . . Triggered . | . . . Machines | -11 -10 -10 ---------- Run | Yrd Mat Sub Machines Disabled 3 | . . 3 Max in Single Turn 2 | . . 2 Machines Repaired . | . . . Machines Dismantled . | . . . Machines Sabotaged . | . . . Overloaded Fab Kills . | . . . Hacking | -11 -10 -10 --------- Run | Yrd Mat Sub Machines Accessed 2 | . . 2 Terminals . | . . . Fabricators . | . . . Repair Stations . | . . . Recycling Units . | . . . Scanalyzers . | . . . Garrison Access . | . . . Total Hacks 5 | . . 5 Successful 5 | . . 5 Failed . | . . . Catastrophic . | . . . Database Lockouts . | . . . Manual . | . . . Terminals . | . . . Fabricators . | . . . Repair Stations . | . . . Recycling Units . | . . . Scanalyzers . | . . . Garrison Access . | . . . Terminal Hacks 5 | . . 5 Record 4 | . . 4 Proto ID Catalog 1 | . . 1 Fabricator Hacks . | . . . Repair Station Hacks . | . . . Recycling Unit Hacks . | . . . Scanalyzer . | . . . Garrison Access Hacks . | . . . Unauthorized Hacks . | . . . Terminals . | . . . Fabricators . | . . . Repair Stations . | . . . Recycling Units . | . . . Scanalyzers . | . . . Garrison Access . | . . . Data Cores Recovered . | . . . Used . | . . . Hacking Detections . | . . . Full Trace Events . | . . . Feedback Events . | . . . Feedback Blocked . | . . . Robot Schematics Acquired . | . . . Robots Built . | . . . Authchips . | . . . Time . | . . . Total Robot Build Rating . | . . . Part Schematics Acquired . | . . . Parts Built . | . . . Authchips . | . . . Time . | . . . Total Part Build Rating . | . . . Parts Repaired . | . . . Time . | . . . Parts Recycled . | . . . Recycled Matter . | . . . Retrieved Matter . | . . . Retrieved Components . | . . . Parts Scanalyzed . | . . . Part Schematics Acquired . | . . . Parts Damaged . | . . . Bothacking | -11 -10 -10 ------------ Run | Yrd Mat Sub Used RIF Installer . | . . . Robots Hacked . | . . . Non-combat . | . . . Combat . | . . . Robot Hacks Applied . | . . . Relay Couplers Released . | . . . Fabnet Peak Effective % . | . . . Robots Rewired . | . . . Allies Hacked . | . . . Hacks Repelled . | . . . Allies | -11 -10 -10 -------- Run | Yrd Mat Sub Total Allies . | . . . Largest Group . | . . . Highest-Rated Group . | . . . Highest-Rated Ally . | . . . Total Orders . | . . . Ally Attacks . | . . . Total Damage . | . . . Kills . | . . . Allies Corrupted . | . . . Allies Melted . | . . . Intel | -11 -10 -10 ------- Run | Yrd Mat Sub Active Infowar (turns) . | . . . Robot Analysis Total . | . . . Derelict Logs Recovered . | . . . Drone Launches . | . . . Drone Recoveries . | . . . Exploration | -11 -10 -10 ------------- Run | Yrd Mat Sub Turns Passed 1965 | 2 236 1727 Spaces Moved 879 | 1 101 777 Core . | . . . Treads 495 | . . 495 Legs 384 | 1 101 282 Wheels . | . . . Hover . | . . . Flight . | . . . Fastest Speed 120 | 120 120 160 Average Speed 198 | 120 185 200 Slowest Speed 330 | 120 330 240 Overloaded Moves . | . . . Propulsion Burnouts . | . . . Robots Hopped . | . . . Potential Cave-ins . | . . . Cave-ins Triggered . | . . . Exploration Rate (%) 22 | 2 20 44 Regions Visited 2 Branch Regions 1 Pre-discovered Areas . | . . . Known Exits Taken . | . . . Unknown Exits Taken 2 | 1 1 . Scrap Searched 1 | . . 1 Spaces Dug . | . . . Terrain Destroyed . | . . . Melee . | . . . Projectile . | . . . AOE . | . . . Terrain Rammed . | . . . Walls Destroyed . | . . . Machines Disabled . | . . . Actions | -11 -10 -10 --------- Run | Yrd Mat Sub Total 989 | 1 131 857 Wait 24 | . 15 9 Move 877 | . 100 777 Hop . | . . . Pick Up 12 | . 4 8 Fast Attach 1 | . 1 . Attach 3 | . . 3 Detach . | . . . Swap 9 | 1 2 6 Drop 4 | . . 4 Fire 59 | . 9 50 Melee . | . . . Ram . | . . . Kick . | . . . Crush . | . . . Escape Stasis . | . . . Rewire . | . . . Trap . | . . . Miscellaneous . | . . . Route ------- -11/Scrapyard -10/Materials -10/Subcaves History --------- Turn | Location | Event 3 | -11/Scrapyard | Discovered new exit (range 0) 3 | -11/Scrapyard | Entered Materials 229 | -10/Materials | Discovered new exit (range 7) 239 | -10/Materials | Entered Subcaves 310 | -10/Subcaves | Build established: Mutant 440 | -10/Subcaves | Visited Clippyterm 446 | -10/Subcaves | Learned Research machine intel 446 | -10/Subcaves | Learned Factory garrison access intel 467 | -10/Subcaves | Core integrity fell below 50% 638 | -10/Subcaves | Visited 4L-MR0's lab 675 | -10/Subcaves | Found Arachnoskeleton 872 | -10/Subcaves | Lost 4 parts (1p1n1u1w) 952 | -10/Subcaves | Core integrity fell below 20% 1393 | -10/Subcaves | Shifting Twisted Machinery released Multitool 1710 | -10/Subcaves | A swath of the cavern ceiling suddenly collapsed 1966 | -10/Subcaves | Destroyed by 3S-1H2(R) with Subdweller Machine Gun Last Messages --------------- 01065_ Subatomizers dissect the Cobbler Unit, destroying it. 01075_ Subatomizers dissect the Sub. Optics, destroying it. 01112_ Subatomizers dissect the Sub. Optics. Multitool falls loose from the Twisted Machinery. 01434_ Dropped Sub. Power Source. 01435_ Acquired Multitool. 01466_ Subatomizers dissect the Sub. Power Source. 01489_ Subatomizers dissect the Sub. Power Source, destroying it. 01626_ HF-L9F(R) destroyed. 01629_ Acquired 25 matter. 01631_ Subatomizers dissect the Disposable Heat Sink. 01656_ Searching scrap... 01656_ Found Sub. Monowheel. 01656_ Found Sub. Laser. 01656_ Found 32 Matter. 01659_ Dropped Med. Laser. 01661_ Acquired Med. Laser. 01662_ Acquired 20 matter. A swath of the cavern ceiling suddenly collapses. 01732_ Subatomizers dissect the Sub. Power Source. Map ----- +----------------------------------------------------+ | ?????????????????????# ?? ## #### ## # | | ???????????????????? ??? # ## | | ???????????????????? ??? | | ???????????????????] ????# ## | | ??????????????????? ???## #### | | ?????????????????? ##### ##???# | | ?????????????????? #????## | | ?????????????????? ###???## | | ?????????????????? ### ###### | | ?????????????????? ## ###?# * | | ??????????????????????????## ##??# | | ???????????????????????????# ### #??# #### | | ???????????????????????????# #?## #??####??##### | | ???????????????????????????##### ##????????????? | | ???????????????????????????## #?????????????? | | ???????????????????????????# ##?????????????? | | ??????????????????????###### ##?????????????? | | ??????????????????????# ###???????????? | | ?????????????????????## ##??????????? | | ??????????#??????????# #??????????? | | ??????????# ????????## #### #??????????? | | ??????????# ??????# #??## ##??????????? | | ???????????# ?????# ##???## #???????????? | | ???????????# ????# #?????# ##???????????? | | ???????????# ???# #?????## #????????????? | | ????????????# ### @#??????## #????????????? | | ?????????????# RR##???????###????????????? | | ?????????????# #???????????????????????? | | ????????????# # #???????????????????????? | | ??????????# # # ????????????????? | | ?????????? ?###### ????????????? | | ?????????# # ???????## ### ?????????????? | | ????????? ?#?????????###??? ?????????????? | | ?????????????????????????????? ??????????????? | | ??????????????????????????????? ?????????????? | | ???????????????????????????????? ??????????????? | | ????????????????????????????????? ???????????????? | | ?????????????????????????????????????????????????? | | ?????????????????????????????????????????????????? | | ?????????????????????????????????????????????????? | | ?????????????????????????????????????????????????? | | ?????????????????????????????????????????????????? | | ?????????????????????????????????????????????????? | | ?????????????????????????????????????????????????? | | ?????????????????????????????????????????????????? | | ?????????????????????????????????????????????????? | | ?????????????????????????????????????????????????? | | ?????????????????????????????????????????????????? | | ?????????????????????????????????????????????????? | | ?????????????????????????????????????????????????? | +----------------------------------------------------+ Best States ------------- Heat Dissipation 25 Energy Generation 10 Energy Capacity 250 Matter Stores 300 Matter Capacity 300 Sight Range 16 Terrain Scan Density 10 Armor Coverage 150 Evasion (%) 45 Recoil Reduction 2 Item Schematics ----------------- None Robot Schematics ------------------ None Fabricated ------------ Nothing Repaired ---------- Nothing Alien Tech Used ----------------- None Achievements -------------- None Challenges ------------ None Game ------ Seed AlertShieldMapper Manual? 0 Play Time 00:10:09 Cumulative 410.7 hours Start 2025.08.13 @ 20:08:36 End 2025.08.13 @ 20:14:13 Sessions 1 Manual Loads 0 Difficulty Rogue Special Mode None Game No. 520 Rogue 520 Adventurer 0 Explorer 0 Win Type - Total 32 Types 16/1/9/1/1/1/0/1/1/1 Lore% 88 Gallery% 83 Achievement% 77 Wizard Run 0 Options --------- Layout 0 ASCII 0 Keyboard 0 Movement Numpad Keybinds 0 Fullscreen 1 Font 18/SmallcapsGlow Map View 76x50 Zoom Use 0% Tactical HUD 1 Map Filters NONE Filters NONE Steam 1 RUN: 3e74b99e-94a7-4127-a843-6e0b51b8de48